Department family,Entity,Date,Expense Type,Expense area,Supplier,Transation number,Amount
Department for Culture Media and Sport,Department for Culture Media and Sport,01/02/2011,Grant-in-Aid (DCMS NDPBs),GIA Museums & Galleries,National Maritime Museum,0030021131,"1,559,000.00"
Department for Culture Media and Sport,Department for Culture Media and Sport,01/02/2011,Grant-in-Aid (DCMS NDPBs),GIA Architecture+Heritage,Royal Household,0030021139,"894,790.00"
Department for Culture Media and Sport,Department for Culture Media and Sport,01/02/2011,Grant-in-Aid (DCMS NDPBs),GIA Museums & Galleries,National Gallery,0030021140,"2,875,586.00"
Department for Culture Media and Sport,Department for Culture Media and Sport,01/02/2011,Grant-in-Aid (DCMS NDPBs),GIA Tourism bodies,Visit Britain,0030021141,"3,923,000.00"
Department for Culture Media and Sport,Department for Culture Media and Sport,01/02/2011,Grant-in-Aid (DCMS NDPBs),GIA Museums & Galleries,Imperial War Museum,0030021142,"1,840,785.00"
Department for Culture Media and Sport,Department for Culture Media and Sport,01/02/2011,Grant-in-Aid (DCMS NDPBs),GIA Libraries bodies,British Library,0030021144,"14,516,000.00"
Department for Culture Media and Sport,Department for Culture Media and Sport,01/02/2011,Grant-in-Aid (DCMS NDPBs),GIA Museums & Galleries,British Museum,0030021145,"4,101,667.00"
Department for Culture Media and Sport,Department for Culture Media and Sport,01/02/2011,Grant-in-Aid (DCMS NDPBs),GIA Libraries bodies,Public Lending Right,0030021146,"44,200.00"
Department for Culture Media and Sport,Department for Culture Media and Sport,01/02/2011,Grant-in-Aid (DCMS NDPBs),GIA Museums & Galleries,Wallace Collection,0030021147,"296,583.00"
Department for Culture Media and Sport,Department for Culture Media and Sport,01/02/2011,Grant-in-Aid (DCMS NDPBs),GIA Museums & Galleries,Natural History Museum,0030021161,"4,007,000.00"
Department for Culture Media and Sport,Department for Culture Media and Sport,01/02/2011,Grant-in-Aid (DCMS NDPBs),GIA Museums & Galleries,Sir John Soane's Museum,0030021162,"96,433.00"
Department for Culture Media and Sport,Department for Culture Media and Sport,01/02/2011,Grant-in-Aid (DCMS NDPBs),GIA Museums & Galleries,Horniman Museum,0030021163,"444,500.00"
Department for Culture Media and Sport,Department for Culture Media and Sport,01/02/2011,Current Grants Private Sector,Museums & Galleries other grants,Tyne and Wear Museums,0030021164,"113,600.00"
Department for Culture Media and Sport,Department for Culture Media and Sport,01/02/2011,Grant-in-Aid (DCMS NDPBs),GIA Museums & Galleries,Victoria & Albert Museum,0030021165,"3,833,952.00"
Department for Culture Media and Sport,Department for Culture Media and Sport,01/02/2011,Grant-in-Aid (DCMS NDPBs),GIA Museums & Galleries,The Royal Armouries,0030021166,"625,000.00"
Department for Culture Media and Sport,Department for Culture Media and Sport,01/02/2011,Grant-in-Aid (DCMS NDPBs),GIA Sports bodies,United Kingdom Anti Doping Ltd,0030021167,"700,000.00"
Department for Culture Media and Sport,Department for Culture Media and Sport,01/02/2011,Grant-in-Aid (DCMS NDPBs),GIA Arts bodies,Arts Council of England,0030021168,"26,286,411.00"
Department for Culture Media and Sport,Department for Culture Media and Sport,01/02/2011,Grant-in-Aid (DCMS NDPBs),GIA Olympic Delivery Authority,Olympic Delivery Authority (31255483),0030021169,"88,200,000.00"
Department for Culture Media and Sport,Department for Culture Media and Sport,01/02/2011,Grant-in-Aid (DCMS NDPBs),GIA Film Council,UK Film Council,0030021170,"2,392,042.00"
Department for Culture Media and Sport,Department for Culture Media and Sport,01/02/2011,Grant-in-Aid (DCMS NDPBs),GIA Architecture+Heritage,English Heritage,0030021171,"8,000,000.00"
Department for Culture Media and Sport,Department for Culture Media and Sport,01/02/2011,Grant-in-Aid (DCMS NDPBs),GIA Museums & Galleries,Geffrye Museum,0030021172,"103,000.00"
Department for Culture Media and Sport,Department for Culture Media and Sport,01/02/2011,Grant-in-Aid (DCMS NDPBs),GIA Museums & Galleries,National Portrait Gallery,0030021173,"625,000.00"
Department for Culture Media and Sport,Department for Culture Media and Sport,01/02/2011,Current Grants Private Sector,GIA Museums & Galleries,National Museum of Science & Industry,0030021179,"230,438.00"
Department for Culture Media and Sport,Department for Culture Media and Sport,01/02/2011,Grant-in-Aid (DCMS NDPBs),GIA Sports bodies,United Kingdom Sports Council,0030021180,"4,132,696.00"
Department for Culture Media and Sport,Department for Culture Media and Sport,01/02/2011,Grant-in-Aid (DCMS NDPBs),GIA Museums & Galleries,Museum of Science & Ind in Manchester,0030021181,"99,526.00"
Department for Culture Media and Sport,Department for Culture Media and Sport,01/02/2011,Reimbursement of Agreed Costs,2012 Inspire Regional Programmers,The Scottish Government ,0030021191,"10,780.00"
Department for Culture Media and Sport,Department for Culture Media and Sport,01/02/2011,Reimbursement of Agreed Costs,2012 Inspire Regional Programmers,The Scottish Government ,0030021192,"16,610.00"
Department for Culture Media and Sport,Department for Culture Media and Sport,01/02/2011,Grant-in-Aid (DCMS NDPBs),GIA Museums & Galleries,National Museum of Science & Industry,0030021193,"3,363,500.00"
Department for Culture Media and Sport,Department for Culture Media and Sport,01/02/2011,Grant-in-Aid (DCMS NDPBs),GIA Museums & Galleries,National Museums & Galleries Merseyside,0030021194,"1,916,618.00"
Department for Culture Media and Sport,Department for Culture Media and Sport,01/02/2011,Grant-in-Aid (DCMS NDPBs),GIA S4C Welsh Fourth Channel,Welsh Fourth Channel Authority,0030021195,"5,865,000.00"
Department for Culture Media and Sport,Department for Culture Media and Sport,01/02/2011,Grant-in-Aid (DCMS NDPBs),GIA Sports bodies,Sport England,0030021196,"8,000,000.00"
Department for Culture Media and Sport,Department for Culture Media and Sport,01/02/2011,Temp staff Interim managers,Human Resources Team,Morgan Law Partners LLP,0030021197,"1,620.00"
Department for Culture Media and Sport,Department for Culture Media and Sport,01/02/2011,Temp staff Interim managers,Human Resources Team,Morgan Law Partners LLP,0030021198,"2,700.00"
Department for Culture Media and Sport,Department for Culture Media and Sport,01/02/2011,Other Telephone Charges,Information Services,Telefonica O2 UK Ltd,0030021200,"3,812.68"
Department for Culture Media and Sport,Department for Culture Media and Sport,01/02/2011,Publications & Website,Govt Art Collection programme,Jared Schiller,0030021204,"2,162.00"
Department for Culture Media and Sport,Department for Culture Media and Sport,02/02/2011,Grant to BBC:Home Broadcasting,Home Broadcasting:Grant to BBC,British Broadcasting Corporation,0030021023,"34,797,000.00"
Department for Culture Media and Sport,Department for Culture Media and Sport,02/02/2011,Conservation - Works on Paper,Govt Art Collection programme,Claire Gaskell,0030021183,"5,490.00"
Department for Culture Media and Sport,Department for Culture Media and Sport,02/02/2011,Grant to OGD (Resource),Digital Switchover - other programmes,BIS,0030021185,"3,700,000.00"
Department for Culture Media and Sport,Department for Culture Media and Sport,02/02/2011,Learning & Development,Central Learning & Development,Teleios Consulting South East Ltd,0030021202,529.10
Department for Culture Media and Sport,Department for Culture Media and Sport,02/02/2011,Publicity,Communications,Judy Adams,0030021205,695.00
Department for Culture Media and Sport,Department for Culture Media and Sport,02/02/2011,Research,Digital Switchover Programme,eaga plc Switchover Help Scheme,0030021206,"68,936.00"
Department for Culture Media and Sport,Department for Culture Media and Sport,02/02/2011,Grant-in-Aid (DCMS NDPBs),Grants for Museums Libraries and Archives education projects,Museums Libraries and Archives Council,0030021208,"200,000.00"
Department for Culture Media and Sport,Department for Culture Media and Sport,02/02/2011,Grant-in-Aid (DCMS NDPBs),Grants for Museums Libraries and Archives education projects,Museums Libraries and Archives Council,0030021209,"1,200,000.00"
Department for Culture Media and Sport,Department for Culture Media and Sport,02/02/2011,Management of Grant Programmes,Listed Places of Worship Grant Scheme,Liberata UK Ltd,0030021210,"17,197.53"
Department for Culture Media and Sport,Department for Culture Media and Sport,02/02/2011,Management of Grant Programmes,Memorials Grant Scheme,Liberata UK Ltd,0030021211,"4,996.81"
Department for Culture Media and Sport,Department for Culture Media and Sport,02/02/2011,Temp staff filling vacancy,Public Engagement + Recognition Unit,Brook Street ( UK ) Ltd,0030021214,506.24
Department for Culture Media and Sport,Department for Culture Media and Sport,02/02/2011,Temp staff filling vacancy,Public Engagement + Recognition Unit,Brook Street ( UK ) Ltd,0030021215,554.56
Department for Culture Media and Sport,Department for Culture Media and Sport,02/02/2011,Temp staff filling vacancy,Government Olympic Executive,Brook Street ( UK ) Ltd,0030021217,862.99
Department for Culture Media and Sport,Department for Culture Media and Sport,02/02/2011,Temp staff filling vacancy,Government Olympic Executive,Brook Street ( UK ) Ltd,0030021218,715.50
Department for Culture Media and Sport,Department for Culture Media and Sport,02/02/2011,Temp staff filling vacancy,Government Olympic Executive,Brook Street ( UK ) Ltd,0030021219,705.96
Department for Culture Media and Sport,Department for Culture Media and Sport,02/02/2011,Temp staff filling vacancy,Government Olympic Executive,Brook Street ( UK ) Ltd,0030021220,787.04
Department for Culture Media and Sport,Department for Culture Media and Sport,03/02/2011,Grant-in-Aid (DCMS NDPBs),GIA Gambling + Lottery bodies,National Lottery Commission,0030021103,"550,000.00"
Department for Culture Media and Sport,Department for Culture Media and Sport,03/02/2011,Grant-in-Aid (DCMS NDPBs),GIA Museums & Galleries,Tate Gallery,0030021143,"6,158,046.00"
Department for Culture Media and Sport,Department for Culture Media and Sport,03/02/2011,Other Consultancy,Dir Culture team + projects,Watts Group PLC,0030021212,"1,375.73"
Department for Culture Media and Sport,Department for Culture Media and Sport,03/02/2011,Conservation - Oil Paintings,Govt Art Collection programme,Mr P Ackroyd,0030021221,550.00
Department for Culture Media and Sport,Department for Culture Media and Sport,03/02/2011,Temp staff filling vacancy,Evidence & Analysis unit administration,TFPL Ltd,0030021230,678.60
Department for Culture Media and Sport,Department for Culture Media and Sport,03/02/2011,Reimbursement of Agreed Costs,2012 Inspire Regional Programmers,Northwest Regional Development Agency,0030021233,"40,000.00"
Department for Culture Media and Sport,Department for Culture Media and Sport,03/02/2011,Temp staff filling vacancy,Human Resources Team,Brook Street ( UK ) Ltd,0030021234,983.06
Department for Culture Media and Sport,Department for Culture Media and Sport,03/02/2011,Temp staff filling vacancy,Human Resources Team,Brook Street ( UK ) Ltd,0030021235,565.66
Department for Culture Media and Sport,Department for Culture Media and Sport,04/02/2011,Finance & Accounting Services,Finance & Planning,Liberata UK Ltd,0030021226,"21,380.46"
Department for Culture Media and Sport,Department for Culture Media and Sport,04/02/2011,Software Licences Capitalised,Finance & Planning,Prophix UK Ltd,0030021229,"27,720.00"
Department for Culture Media and Sport,Department for Culture Media and Sport,04/02/2011,Grant to OGD (Resource),OFCOM,OFCOM,0030021236,"16,897.00"
Department for Culture Media and Sport,Department for Culture Media and Sport,04/02/2011,Temp staff filling vacancy,Government Olympic Executive,Hays Office Support,0030021238,917.57
Department for Culture Media and Sport,Department for Culture Media and Sport,04/02/2011,Temp staff filling vacancy,Government Olympic Executive,Brook Street ( UK ) Ltd,0030021239,815.66
Department for Culture Media and Sport,Department for Culture Media and Sport,07/02/2011,T&S Overseas (Officials only),Procurement,Capita Business Travel Ltd,0030021248,"1,617.63"
Department for Culture Media and Sport,Department for Culture Media and Sport,08/02/2011,Grant to BBC:Home Broadcasting,Home Broadcasting:Grant to BBC,British Broadcasting Corporation,0030021024,"34,797,000.00"
Department for Culture Media and Sport,Department for Culture Media and Sport,08/02/2011,International Subscriptions,European AV Observatory,European Audiovisual Observatory,0030021246,"72,894.01"
Department for Culture Media and Sport,Department for Culture Media and Sport,08/02/2011,Local Photocopiers,Estates & Property Services,Canon (UK) Ltd,0030021250,"2,062.22"
Department for Culture Media and Sport,Department for Culture Media and Sport,08/02/2011,Office Accom Fuel & Utilities,Estates & Property Services,British Gas Business,0030021251,"4,234.30"
Department for Culture Media and Sport,Department for Culture Media and Sport,08/02/2011,Other Consultancy,Public Engagement + Recognition Unit,Virginia Crowe,0030021254,"1,075.00"
Department for Culture Media and Sport,Department for Culture Media and Sport,08/02/2011,Learning & Development,Central Learning & Development,Teleios Consulting South East Ltd,0030021256,528.10
Department for Culture Media and Sport,Department for Culture Media and Sport,08/02/2011,Temp staff Interim managers,Government Olympic Executive,Russam GMS LTD,0030021258,"10,350.00"
Department for Culture Media and Sport,Department for Culture Media and Sport,08/02/2011,Temp staff Interim managers,Government Olympic Executive,Russam GMS LTD,0030021259,"10,350.00"
Department for Culture Media and Sport,Department for Culture Media and Sport,08/02/2011,Temp staff Interim managers,Government Olympic Executive,Russam GMS LTD,0030021260,"10,350.00"
Department for Culture Media and Sport,Department for Culture Media and Sport,08/02/2011,Temp staff Interim managers,Government Olympic Executive,LA International,0030021261,"16,512.10"
Department for Culture Media and Sport,Department for Culture Media and Sport,08/02/2011,Press Associated Subscriptions,Press Office,The Press Association,0030021262,"1,580.86"
Department for Culture Media and Sport,Department for Culture Media and Sport,08/02/2011,Art Transport - UK,Govt Art Collection programme,Constantine,0030021263,590.00
Department for Culture Media and Sport,Department for Culture Media and Sport,08/02/2011,Publicity,Communications,COI Communication,0030021266,"9,450.00"
Department for Culture Media and Sport,Department for Culture Media and Sport,08/02/2011,Temp staff filling vacancy,Government Olympic Executive,Adecco UK Ltd,0030021267,"3,687.49"
Department for Culture Media and Sport,Department for Culture Media and Sport,08/02/2011,Temp staff filling vacancy,Government Olympic Executive,Hays Office Support,0030021268,951.55
Department for Culture Media and Sport,Department for Culture Media and Sport,08/02/2011,Temp staff filling vacancy,Government Olympic Executive,Brook Street ( UK ) Ltd,0030021269,801.36
Department for Culture Media and Sport,Department for Culture Media and Sport,08/02/2011,Temp staff filling vacancy,Government Olympic Executive,Brook Street ( UK ) Ltd,0030021270,851.93
Department for Culture Media and Sport,Department for Culture Media and Sport,08/02/2011,Temp staff filling vacancy,Government Olympic Executive,Brook Street ( UK ) Ltd,0030021271,715.50
Department for Culture Media and Sport,Department for Culture Media and Sport,09/02/2011,Publicity,Communications,Type Technique,0030021249,"1,575.00"
Department for Culture Media and Sport,Department for Culture Media and Sport,09/02/2011,Research,EAU Taking Part Survey,TNS UK LTD,0030021252,"116,868.00"
Department for Culture Media and Sport,Department for Culture Media and Sport,09/02/2011,IT Capital Additions,Human Resources Team,Catalytic Consulting & Training,0030021253,"13,860.00"
Department for Culture Media and Sport,Department for Culture Media and Sport,09/02/2011,Other Telephone Charges,Information Services,Vodafone (Corporate),0030021272,950.80
Department for Culture Media and Sport,Department for Culture Media and Sport,09/02/2011,T&S UK (Officials only),Procurement,Hogg Robinson ( Travel ) Limited,0030021274,"1,592.80"
Department for Culture Media and Sport,Department for Culture Media and Sport,09/02/2011,Office Accom Fuel & Utilities,Estates & Property Services,EDF Energy Ltd,0030021275,"14,794.82"
Department for Culture Media and Sport,Department for Culture Media and Sport,09/02/2011,Research,EAU Taking Part Survey,Knight Kavanagh & Page,0030021276,"29,029.08"
Department for Culture Media and Sport,Department for Culture Media and Sport,09/02/2011,Government Procurement Card,Procurement,Barclays Bank plc,0030021277,"21,132.76"
Department for Culture Media and Sport,Department for Culture Media and Sport,09/02/2011,Current Grants Private Sector,Listed Places of Worship Grant Scheme,Summary value of grants paid by Liberata UK Ltd,0030021278,"730,002.31"
Department for Culture Media and Sport,Department for Culture Media and Sport,09/02/2011,Temp staff filling vacancy,Human Resources Team,Brook Street ( UK ) Ltd,0030021279,860.92
Department for Culture Media and Sport,Department for Culture Media and Sport,09/02/2011,Temp staff filling vacancy,Human Resources Team,Brook Street ( UK ) Ltd,0030021280,550.37
Department for Culture Media and Sport,Department for Culture Media and Sport,09/02/2011,Grant-in-Aid (DCMS NDPBs),Grants for Museums Libraries and Archives education projects,Museums Libraries and Archives Council,0030021281,"7,586,000.00"
Department for Culture Media and Sport,Department for Culture Media and Sport,09/02/2011,Art Transport - UK,Govt Art Collection programme,Jayhawk Ltd,0030021284,520.00
Department for Culture Media and Sport,Department for Culture Media and Sport,10/02/2011,Current Grants Private Sector,Arts Support in Culture Team,Creative Bursaries (Jerwood Foundation),0030021257,"47,501.00"
Department for Culture Media and Sport,Department for Culture Media and Sport,10/02/2011,Temp staff filling vacancy,Evidence & Analysis unit administration,TFPL Ltd,0030021265,841.46
Department for Culture Media and Sport,Department for Culture Media and Sport,11/02/2011,Grant to BBC:Home Broadcasting,Home Broadcasting:Grant to BBC,British Broadcasting Corporation,0030021025,"139,200,000.00"
Department for Culture Media and Sport,Department for Culture Media and Sport,11/02/2011,Learning & Development,Central Learning & Development,Eliesha Training Ltd,0030021285,"3,627.50"
Department for Culture Media and Sport,Department for Culture Media and Sport,11/02/2011,Temp staff Interim managers,Government Olympic Executive,Russam GMS LTD,0030021286,"17,595.00"
Department for Culture Media and Sport,Department for Culture Media and Sport,11/02/2011,National Cutting Service,Press Office,Precise Media Monitoring Ltd,0030021287,"3,749.40"
Department for Culture Media and Sport,Department for Culture Media and Sport,11/02/2011,Publicity,Communications,Precise Media Monitoring Ltd,0030021287,118.85
Department for Culture Media and Sport,Department for Culture Media and Sport,11/02/2011,Current Grants Private Sector,Own Art and Take It Away,ArtCo Trading Ltd,0030021289,"377,228.00"
Department for Culture Media and Sport,Department for Culture Media and Sport,11/02/2011,Grant to OGD (Resource),OFCOM,OFCOM,0030021295,"254,366.00"
Department for Culture Media and Sport,Department for Culture Media and Sport,14/02/2011,Learning & Development,Central Learning & Development,ILX Group PLC,0030021291,"3,645.00"
Department for Culture Media and Sport,Department for Culture Media and Sport,14/02/2011,Temp staff filling vacancy,Public Engagement + Recognition Unit,Brook Street ( UK ) Ltd,0030021298,573.74
Department for Culture Media and Sport,Department for Culture Media and Sport,14/02/2011,Temp staff filling vacancy,Public Engagement + Recognition Unit,Brook Street ( UK ) Ltd,0030021299,506.24
Department for Culture Media and Sport,Department for Culture Media and Sport,14/02/2011,Learning & Development,Central Learning & Development,Enacta Limited,0030021301,"1,013.00"
Department for Culture Media and Sport,Department for Culture Media and Sport,15/02/2011,Publicity Costs - Programme,Childrens Play,Department of Education,0030021225,"110,260.00"
Department for Culture Media and Sport,Department for Culture Media and Sport,15/02/2011,Temp staff Interim managers,Human Resources Team,Morgan Law Partners LLP,0030021302,"2,160.00"
Department for Culture Media and Sport,Department for Culture Media and Sport,15/02/2011,Statutory Instrument Costs,DG Partnerships + Programmes,The Stationery Office,0030021304,740.00
Department for Culture Media and Sport,Department for Culture Media and Sport,16/02/2011,Publicity,Communications,Red Stone Design Ltd,0030021303,"5,257.00"
Department for Culture Media and Sport,Department for Culture Media and Sport,16/02/2011,Other Capital Grants,Memorials Grant Scheme,Summary value of grants paid by Liberata UK Ltd,0030021306,"10,841.26"
Department for Culture Media and Sport,Department for Culture Media and Sport,16/02/2011,Other Telephone Charges,Information Services,Daisy Telecoms,0030021307,765.13
Department for Culture Media and Sport,Department for Culture Media and Sport,16/02/2011,Temp staff Interim managers,Government Olympic Executive,LA International,0030021310,"18,825.12"
Department for Culture Media and Sport,Department for Culture Media and Sport,16/02/2011,Other Telephone Charges,Information Services,Buying Solutions,0030021313,"51,733.64"
Department for Culture Media and Sport,Department for Culture Media and Sport,16/02/2011,Other Telephone Charges,Information Services,Telefonica O2 UK Ltd,0030021314,"1,020.00"
Department for Culture Media and Sport,Department for Culture Media and Sport,16/02/2011,Conservation - Oil Paintings,Govt Art Collection programme,Simon Gillespie Studio,0030021323,900.00
Department for Culture Media and Sport,Department for Culture Media and Sport,17/02/2011,Grant to BBC:Home Broadcasting,Home Broadcasting:Grant to BBC,British Broadcasting Corporation,0030021026,"34,797,000.00"
Department for Culture Media and Sport,Department for Culture Media and Sport,17/02/2011,Oth Professional Services Prog,Digital Switchover Programme,Alan Fellows Associates,0030021309,"1,253.02"
Department for Culture Media and Sport,Department for Culture Media and Sport,17/02/2011,Non Library Publications Budge,Press Office,Precise (AMI),0030021318,"2,013.36"
Department for Culture Media and Sport,Department for Culture Media and Sport,17/02/2011,Accommodation Management Fees,Estates & Property Services,DE & J Levy LLP,0030021324,500.00
Department for Culture Media and Sport,Department for Culture Media and Sport,17/02/2011,Security,Estates & Property Services,Identec Ltd,0030021326,"2,071.20"
Department for Culture Media and Sport,Department for Culture Media and Sport,17/02/2011,Temp staff Interim managers,Government Olympic Executive,Alpine Consortium,0030021328,"22,736.88"
Department for Culture Media and Sport,Department for Culture Media and Sport,17/02/2011,Art Transport - UK,Govt Art Collection programme,Fine Art Transport Services Ltd,0030021335,679.00
Department for Culture Media and Sport,Department for Culture Media and Sport,17/02/2011,Art Transport - UK,Govt Art Collection programme,Fine Art Transport Services Ltd,0030021336,690.00
Department for Culture Media and Sport,Department for Culture Media and Sport,17/02/2011,Temp staff Interim managers,Government Olympic Executive,Alpine Consortium,0030021338,"13,642.13"
Department for Culture Media and Sport,Department for Culture Media and Sport,18/02/2011,Publicity,Communications,COI Communication,0030021319,516.24
Department for Culture Media and Sport,Department for Culture Media and Sport,18/02/2011,IT Support,Information Services,Atos Origin IT Services UK Ltd,0030021325,"576,236.87"
Department for Culture Media and Sport,Department for Culture Media and Sport,18/02/2011,IT Maintenance,Information Services,Atos Origin IT Services UK Ltd,0030021329,"33,499.49"
Department for Culture Media and Sport,Department for Culture Media and Sport,18/02/2011,TSOL Advice Billed Hours,Legal Advisers to DCMS (TSOL),Treasury Solicitors,0030021337,"10,432.40"
Department for Culture Media and Sport,Department for Culture Media and Sport,18/02/2011,Other Capital Grants,Memorials Grant Scheme,Summary value of grants paid by Liberata UK Ltd,0030021340,563.92
Department for Culture Media and Sport,Department for Culture Media and Sport,18/02/2011,GAC Workshop supplies,Govt Art Collection programme,Designed Architectural Lighting Co Ltd,0030021343,"2,436.00"
Department for Culture Media and Sport,Department for Culture Media and Sport,18/02/2011,Temp staff filling vacancy,Government Olympic Executive,Hays Office Support,0030021344,906.24
Department for Culture Media and Sport,Department for Culture Media and Sport,18/02/2011,Temp staff Interim managers,Public Engagement + Recognition Unit,Brook Street ( UK ) Ltd,0030021345,573.74
Department for Culture Media and Sport,Department for Culture Media and Sport,18/02/2011,Temp staff Interim managers,Public Engagement + Recognition Unit,Brook Street ( UK ) Ltd,0030021346,558.30
Department for Culture Media and Sport,Department for Culture Media and Sport,18/02/2011,Temp staff Interim managers,Human Resources Team,Brook Street ( UK ) Ltd,0030021347,550.37
Department for Culture Media and Sport,Department for Culture Media and Sport,18/02/2011,Temp staff filling vacancy,Government Olympic Executive,Brook Street ( UK ) Ltd,0030021348,763.20
Department for Culture Media and Sport,Department for Culture Media and Sport,18/02/2011,Temp staff filling vacancy,Government Olympic Executive,Brook Street ( UK ) Ltd,0030021350,763.20
Department for Culture Media and Sport,Department for Culture Media and Sport,18/02/2011,Temp staff filling vacancy,Government Olympic Executive,Brook Street ( UK ) Ltd,0030021351,715.50
Department for Culture Media and Sport,Department for Culture Media and Sport,18/02/2011,Temp staff filling vacancy,Government Olympic Executive,Brook Street ( UK ) Ltd,0030021352,815.66
Department for Culture Media and Sport,Department for Culture Media and Sport,18/02/2011,Temp staff Interim managers,Human Resources Team,Brook Street ( UK ) Ltd,0030021353,878.36
Department for Culture Media and Sport,Department for Culture Media and Sport,21/02/2011,TSOL Advice Billed Hours,Legal Advisers to DCMS (TSOL),Treasury Solicitors,0030021322,"124,900.94"
Department for Culture Media and Sport,Department for Culture Media and Sport,21/02/2011,Payroll (Logica),Human Resources Team,Logica CMG Enterprise Services,0030021342,"2,842.60"
Department for Culture Media and Sport,Department for Culture Media and Sport,21/02/2011,Security,Estates & Property Services,Carillion Services Ltd,0030021355,"56,367.12"
Department for Culture Media and Sport,Department for Culture Media and Sport,21/02/2011,Plant+Machinery Capital Addn,Estates & Property Services,Carillion Services Ltd,0030021356,"47,705.42"
Department for Culture Media and Sport,Department for Culture Media and Sport,21/02/2011,Conference Management Costs,Government Olympic Executive,The National Gallery,0030021357,"2,000.00"
Department for Culture Media and Sport,Department for Culture Media and Sport,21/02/2011,Temp staff Interim managers,Human Resources Team,Morgan Law Partners LLP,0030021358,"2,700.00"
Department for Culture Media and Sport,Department for Culture Media and Sport,21/02/2011,New Picture Frames,Govt Art Collection programme,Darbyshire Framemakers,0030021359,"1,496.95"
Department for Culture Media and Sport,Department for Culture Media and Sport,21/02/2011,New Picture Frames,Govt Art Collection programme,Darbyshire Framemakers,0030021360,"1,367.70"
Department for Culture Media and Sport,Department for Culture Media and Sport,21/02/2011,Learning & Development,Central Learning & Development,First Class Coach Ltd,0030021364,"1,200.00"
Department for Culture Media and Sport,Department for Culture Media and Sport,21/02/2011,Learning & Development,Central Learning & Development,Enacta Limited,0030021367,"7,507.50"
Department for Culture Media and Sport,Department for Culture Media and Sport,21/02/2011,Other Hospitality,Government Olympic Executive,London Organising Cttee Of Olympic Games,0030021369,621.11
Department for Culture Media and Sport,Department for Culture Media and Sport,21/02/2011,Learning & Development,Central Learning & Development,BPP Professional Education Ltd,0030021370,"1,575.02"
Department for Culture Media and Sport,Department for Culture Media and Sport,22/02/2011,TSOL European Levy,Legal Advisers to DCMS (TSOL),Treasury Solicitors,0030021362,"2,750.00"
Department for Culture Media and Sport,Department for Culture Media and Sport,22/02/2011,TSOL Disbursement Costs,Legal Advisers to DCMS (TSOL),Mr Charles Harpum,0030021368,"3,200.00"
Department for Culture Media and Sport,Department for Culture Media and Sport,22/02/2011,Temp staff filling vacancy,Government Olympic Executive,Hays Office Support,0030021371,974.21
Department for Culture Media and Sport,Department for Culture Media and Sport,23/02/2011,Grant to BBC:Home Broadcasting,Home Broadcasting:Grant to BBC,British Broadcasting Corporation,0030021027,"34,798,000.00"
Department for Culture Media and Sport,Department for Culture Media and Sport,23/02/2011,Temp staff filling vacancy,Evidence & Analysis unit administration,TFPL Ltd,0030021363,861.83
Department for Culture Media and Sport,Department for Culture Media and Sport,23/02/2011,TSOL Disbursement Costs,Legal Advisers to DCMS (TSOL),Mr Daniel Beard,0030021379,"4,440.00"
Department for Culture Media and Sport,Department for Culture Media and Sport,23/02/2011,Conservation - Works on Paper,Govt Art Collection programme,Keith Holmes Hampton Court,0030021380,747.00
Department for Culture Media and Sport,Department for Culture Media and Sport,23/02/2011,Art Transport - UK,Govt Art Collection programme,Fine Art Transport Services Ltd,0030021383,620.00
Department for Culture Media and Sport,Department for Culture Media and Sport,23/02/2011,Parliamentary Counsel Costs,Legal Advisers to DCMS (TSOL),Cabinet Office (Citi Tr),0030021385,"2,025.00"
Department for Culture Media and Sport,Department for Culture Media and Sport,23/02/2011,DCMS Wolfson Fund Round 8,Co-funded grant schemes,Norfolk County Council,0030021394,"46,174.63"
Department for Culture Media and Sport,Department for Culture Media and Sport,24/02/2011,Other Consultancy,Government Olympic Executive,Office for National Statistics,0030021386,"18,500.38"
Department for Culture Media and Sport,Department for Culture Media and Sport,24/02/2011,Other Consultancy,Government Olympic Executive,Office for National Statistics,0030021387,"15,000.05"
Department for Culture Media and Sport,Department for Culture Media and Sport,24/02/2011,Temp staff Interim managers,Government Olympic Executive,Russam GMS LTD,0030021388,"10,350.00"
Department for Culture Media and Sport,Department for Culture Media and Sport,24/02/2011,Temp staff Interim managers,Government Olympic Executive,Russam GMS LTD,0030021389,"10,350.00"
Department for Culture Media and Sport,Department for Culture Media and Sport,24/02/2011,Temp staff Interim managers,Government Olympic Executive,Russam GMS LTD,0030021390,"4,657.50"
Department for Culture Media and Sport,Department for Culture Media and Sport,24/02/2011,Temp staff Interim managers,Government Olympic Executive,Russam GMS LTD,0030021391,"5,175.00"
Department for Culture Media and Sport,Department for Culture Media and Sport,24/02/2011,Other Telephone Charges,Information Services,Verizon UK Ltd,0030021392,778.80
Department for Culture Media and Sport,Department for Culture Media and Sport,24/02/2011,T&S UK (Officials only),Procurement,Hogg Robinson ( Travel ) Limited,0030021393,"2,786.80"
Department for Culture Media and Sport,Department for Culture Media and Sport,24/02/2011,DCMS Wolfson Fund Round 8,Co-funded grant schemes,The Bowes Museum,0030021395,"300,000.00"
Department for Culture Media and Sport,Department for Culture Media and Sport,24/02/2011,DCMS Wolfson Fund Round 8,Co-funded grant schemes,Sir John Soane's Museum,0030021396,"80,650.74"
Department for Culture Media and Sport,Department for Culture Media and Sport,24/02/2011,DCMS Wolfson Fund Round 8,Co-funded grant schemes,Wiltshire Heritage Museum,0030021397,"142,509.51"
Department for Culture Media and Sport,Department for Culture Media and Sport,24/02/2011,DCMS Wolfson Fund Round 8,Co-funded grant schemes,Sheffield Galleries & Museums Trust,0030021398,"81,475.93"
Department for Culture Media and Sport,Department for Culture Media and Sport,24/02/2011,DCMS Wolfson Fund Round 8,Co-funded grant schemes,York Museums Trust,0030021399,"145,000.00"
Department for Culture Media and Sport,Department for Culture Media and Sport,24/02/2011,DCMS Wolfson Fund Round 8,Co-funded grant schemes,Wolverhampton City Council Account,0030021400,"29,779.18"
Department for Culture Media and Sport,Department for Culture Media and Sport,24/02/2011,DCMS Wolfson Fund Round 8,Co-funded grant schemes,University of Cambridge,0030021401,"12,796.50"
Department for Culture Media and Sport,Department for Culture Media and Sport,24/02/2011,DCMS Wolfson Fund Round 8,Co-funded grant schemes,Wallace Collection,0030021402,"40,924.00"
Department for Culture Media and Sport,Department for Culture Media and Sport,24/02/2011,DCMS Wolfson Fund Round 8,Co-funded grant schemes,Victoria & Albert Museum,0030021403,"76,711.15"
Department for Culture Media and Sport,Department for Culture Media and Sport,24/02/2011,DCMS Wolfson Fund Round 8,Co-funded grant schemes,Tullie House,0030021404,"1,927.37"
Department for Culture Media and Sport,Department for Culture Media and Sport,24/02/2011,DCMS Wolfson Fund Round 8,Co-funded grant schemes,The Royal Engineers Museum,0030021405,"20,000.00"
Department for Culture Media and Sport,Department for Culture Media and Sport,24/02/2011,DCMS Wolfson Fund Round 8,Co-funded grant schemes,Museum of Natural History,0030021408,"27,447.58"
Department for Culture Media and Sport,Department for Culture Media and Sport,24/02/2011,DCMS Wolfson Fund Round 8,Co-funded grant schemes,Durham University,0030021409,"50,000.00"
Department for Culture Media and Sport,Department for Culture Media and Sport,24/02/2011,DCMS Wolfson Fund Round 8,Co-funded grant schemes,National Coal Mining Museum,0030021410,"30,000.00"
Department for Culture Media and Sport,Department for Culture Media and Sport,24/02/2011,DCMS Wolfson Fund Round 8,Co-funded grant schemes,Manchester City Galleries,0030021412,"25,516.68"
Department for Culture Media and Sport,Department for Culture Media and Sport,24/02/2011,DCMS Wolfson Fund Round 8,Co-funded grant schemes,National Museum of Science & Industry,0030021413,"27,000.00"
Department for Culture Media and Sport,Department for Culture Media and Sport,24/02/2011,DCMS Wolfson Fund Round 8,Co-funded grant schemes,Imperial War Museum,0030021414,734.00
Department for Culture Media and Sport,Department for Culture Media and Sport,24/02/2011,DCMS Wolfson Fund Round 8,Co-funded grant schemes,Imperial War Museum,0030021415,"116,523.22"
Department for Culture Media and Sport,Department for Culture Media and Sport,24/02/2011,DCMS Wolfson Fund Round 8,Co-funded grant schemes,Exeter City Council,0030021416,"200,000.00"
Department for Culture Media and Sport,Department for Culture Media and Sport,24/02/2011,DCMS Wolfson Fund Round 8,Co-funded grant schemes,Dulwich Picture Gallery,0030021417,"19,368.86"
Department for Culture Media and Sport,Department for Culture Media and Sport,24/02/2011,DCMS Wolfson Fund Round 8,Co-funded grant schemes,Dulwich Picture Gallery,0030021420,680.00
Department for Culture Media and Sport,Department for Culture Media and Sport,24/02/2011,DCMS Wolfson Fund Round 8,Co-funded grant schemes,University of Cambridge,0030021421,"132,630.00"
Department for Culture Media and Sport,Department for Culture Media and Sport,24/02/2011,DCMS Wolfson Fund Round 8,Co-funded grant schemes,The Royal Armouries,0030021422,"87,000.00"
Department for Culture Media and Sport,Department for Culture Media and Sport,24/02/2011,DCMS Wolfson Fund Round 8,Co-funded grant schemes,Beamish Museum Trading Ltd,0030021424,"150,000.00"
Department for Culture Media and Sport,Department for Culture Media and Sport,24/02/2011,DCMS Wolfson Fund Round 8,Co-funded grant schemes,University of Oxford,0030021425,"122,000.00"
Department for Culture Media and Sport,Department for Culture Media and Sport,24/02/2011,DCMS Wolfson Fund Round 8,Co-funded grant schemes,Bath & North East Somerset,0030021426,"80,000.00"
Department for Culture Media and Sport,Department for Culture Media and Sport,24/02/2011,Mailroom Services,Estates & Property Services,Ecovert FM Ltd,0030021427,"13,140.25"
Department for Culture Media and Sport,Department for Culture Media and Sport,24/02/2011,IT Maintenance,Information Services,Atos Origin IT Services UK Ltd,0030021429,"17,406.16"
Department for Culture Media and Sport,Department for Culture Media and Sport,24/02/2011,National Non-Domestic Rates,Estates & Property Services,Westminster City Council,0030021434,"12,452.15"
Department for Culture Media and Sport,Department for Culture Media and Sport,25/02/2011,DCMS Wolfson Fund Round 8,Co-funded grant schemes,Derby City Council,0030021452,"17,419.00"
Department for Culture Media and Sport,Department for Culture Media and Sport,25/02/2011,Prog Event+Conference OrgCosts,Architecture + heritage progs,Park Crescent Conf. Centre Ltd,0030021458,624.50
Department for Culture Media and Sport,Department for Culture Media and Sport,25/02/2011,Temp staff filling vacancy,Government Olympic Executive,Brook Street ( UK ) Ltd,0030021459,846.40
Department for Culture Media and Sport,Department for Culture Media and Sport,25/02/2011,Temp staff filling vacancy,Government Olympic Executive,Brook Street ( UK ) Ltd,0030021460,796.58
Department for Culture Media and Sport,Department for Culture Media and Sport,25/02/2011,Temp staff filling vacancy,Government Olympic Executive,Brook Street ( UK ) Ltd,0030021461,715.50
Department for Culture Media and Sport,Department for Culture Media and Sport,25/02/2011,Temp staff filling vacancy,Government Olympic Executive,Brook Street ( UK ) Ltd,0030021462,787.04
Department for Culture Media and Sport,Department for Culture Media and Sport,25/02/2011,Temp staff filling vacancy,Public Engagement + Recognition Unit,Brook Street ( UK ) Ltd,0030021466,573.74
Department for Culture Media and Sport,Department for Culture Media and Sport,28/02/2011,Current Grants Private Sector,Listed Places of Worship Grant Scheme,Summary value of grants paid by Liberata UK Ltd,0030021467,"948,740.71"
Department for Culture Media and Sport,Department for Culture Media and Sport,28/02/2011,Temp staff filling vacancy,Public Engagement + Recognition Unit,Brook Street ( UK ) Ltd,0030021468,573.74
Department for Culture Media and Sport,Department for Culture Media and Sport,28/02/2011,Office Accommodation Rent,Estates & Property Services,AMAS Ltd C/O Jones Lang Lasalle,0030021469,"12,865.91"
Department for Culture Media and Sport,Department for Culture Media and Sport,28/02/2011,Conference Management Costs,Government Olympic Executive,London Organising Cttee Of Olympic Games,0030021481,"5,000.00"
